Cogmind - Beta 16 @@@ ROGUE MODE // 2025.12.30 @ 00:44:20 Player: Roboardo Result: Destroyed by exploding Nuclear Reactor Performance ------------- Evolutions (3) 1500 Regions Visited (7) 1400 Robots Destroyed (52) 260 Value Destroyed (1572) 1572 Prototype IDs (1) 20 Alien Tech Used (0) 0 Bonus (616) 616 TOTAL SCORE: 5368 Bonus ------- Follower Combat Kills 84 Entered Garrisons 200 Used RIF Installer 500 Friendly Fire -168 Cogmind --------- Core Integrity 0/700 Matter 295/300 Energy 99/100 System Corruption 0% Temperature Cool (0) Movement Core (50) Location -7/Factory Parts ------- > --- POWER (2) -------- (None) > --- PROPULSION (4) --- (None) > --- UTILITY (4) ------ (None) > --- WEAPON (3) ------- (None) > --- INVENTORY (5) ---- Large Storage Unit Pulse Rifle Assault Rifle Plasma Cutter Peak State ------------ > --- POWER ------------ Improved Ion Engine Light Angular Momentum Engine > --- PROPULSION ------- Improved Carbon-fiber Leg Improved Carbon-fiber Leg Improved Carbon-fiber Leg > --- UTILITY ---------- Large Storage Unit Scrap Shield Splice Drone Bay > --- WEAPON ----------- Enhanced Flamer Chainsword > --- INVENTORY -------- Light Ion Engine Light Ion Engine Large Storage Unit Structural Scanner Utility Shielding Light Armor Plating Authchip [Propulsion] Authchip [Weapon] Field Recycling Unit Pulse Rifle Assault Rifle Grenade Launcher Grenade Launcher Grenade Launcher Plasma Cutter [Rating: 40] Favorites ----------- Power Light Nuclear Core Engine Light Ion Engine Power Core Light Nuclear Core Propulsion Light Treads Treads Light Treads Leg Improved Carbon-fiber Leg Utility Large Storage Unit Device Splice Drone Bay Storage Large Storage Unit Protection Light Armor Plating Weapon Grenade Launcher Energy Gun Medium Laser Ballistic Gun Light Assault Rifle Ballistic Cannon Light Cannon Launcher Grenade Launcher Special Weapon Enhanced Flamer Slashing Weapon Chainsword Piercing Weapon Makeshift Spear Build | -11 -10 -10 -10 -8 -7 -7 -7 ------- Run | Yrd Mat Min Sub Mat Fac Gar Fac Slots Evolved 6 | . . . . 4 2 . . Power 1 | . . . . 1 . . . Propulsion 2 | . . . . 1 1 . . Utility 2 | . . . . 2 . . . Weapon 1 | . . . . . 1 . . Parts Attached 41 | 6 6 6 5 17 . 1 . Power 9 | 1 1 . 2 5 . . . Engine 7 | 1 . . 2 4 . . . Core 2 | . 1 . . 1 . . . Reactor . | . . . . . . . . Propulsion 10 | 2 1 2 1 3 . 1 . Treads 6 | 2 1 2 1 . . . . Leg 4 | . . . . 3 . 1 . Wheel . | . . . . . . . . Hover . | . . . . . . . . Flight . | . . . . . . . . Utility 9 | 1 3 1 . 4 . . . Device 2 | . . 1 . 1 . . . Storage 2 | 1 1 . . . . . . Processor . | . . . . . . . . Hackware . | . . . . . . . . Protection 5 | . 2 . . 3 . . . Artifact . | . . . . . . . . Weapon 13 | 2 1 3 2 5 . . . Energy Gun 1 | 1 . . . . . . . Energy Cannon . | . . . . . . . . Ballistic Gun 4 | 1 . 2 . 1 . . . Ballistic Cannon 1 | . 1 . . . . . . Launcher 3 | . . . 2 1 . . . Special Weapon 2 | . . 1 . 1 . . . Impact Weapon . | . . . . . . . . Slashing Weapon 1 | . . . . 1 . . . Piercing Weapon 1 | . . . . 1 . . . Special Melee Weapon . | . . . . . . . . Unidentified Prototypes 1 | . . 1 . . . . . Parts Lost 13 | . . . . 2 . 10 1 Power 3 | . . . . 1 . 2 . Propulsion 3 | . . . . . . 3 . Utility 4 | . . . . 1 . 2 1 Weapon 3 | . . . . . . 3 . Highest Loss Streak 8 | . . . . 1 . 8 1 To Critical Strikes . | . . . . . . . . Average Backups 11 | . 8 14 13 12 12 8 4 Power 1 | . 1 1 . 1 2 1 . Propulsion . | . . 1 1 . . . . Utility 5 | . 4 7 8 5 5 3 1 Weapon 3 | . 1 4 3 4 4 3 2 Tool/Special . | . . . . . . . . Unused Backups 7 | . . 1 1 1 . 2 2 Power . | . . . . . . . . Propulsion . | . . . . . . . . Utility 4 | . . . . 1 . 2 1 Weapon 3 | . . 1 1 . . . 1 Tool/Special . | . . . . . . . . Average Slot Usage (%) 94 | . 99 100 100 91 90 41 7 Engine 6 | . 3 . 12 14 7 3 . Core 7 | . 10 14 1 . 7 2 . Treads 21 | . 28 28 28 4 . . . Leg 4 | . . . . 22 23 8 . Device 7 | . . 5 14 13 15 8 . Storage 12 | . 14 14 14 9 7 3 . Protection 8 | . 13 8 . 8 7 2 7 Ballistic Gun 9 | . 14 20 3 2 . . . Ballistic Cannon 5 | . 12 6 . . . . . Launcher 7 | . . . 24 2 15 5 . Slashing Weapon 1 | . . . . 7 5 6 . Peak Build Rating 40 | 6 11 17 17 40 38 38 1 Average Rating 16 | 4 9 13 16 33 37 15 1 On Entrance 15 | . 6 11 17 17 34 38 . Avg Prop Armor Cover (%) 7 | . . . . 7 . . . Naked Turns 21 | . . . . . . 21 . Heaviest Build 67 | 11 32 36 39 67 55 55 3 Greatest Support 60 | 40 40 40 40 60 54 54 3 Greatest Overweight (x) 10 | . . . . 2 1 10 . Average Overweight (x) . | . . . . . . . . Largest Inventory Capacity 15 | 8 15 15 15 15 15 15 5 Average Capacity 14 | 7 14 15 15 15 15 9 5 Most Carried 15 | 4 15 15 15 15 13 12 4 Average Carried 11 | . 8 14 14 12 12 8 4 Final Capacity 15 | 8 15 15 15 15 15 5 5 Final Carried 15 | 1 15 15 15 13 12 5 4 Class Distribution -------------------- 90% | Mutant 9% | Scavenger-Mutant Dominant Class ---------------- Mutant | -10/Materials Scavenger-Mutant | -10/Mines Mutant | -10/Subcaves Mutant | -8/Materials Mutant | -7/Factory Mutant | -7/Garrison Mutant | -7/Factory Resources | -11 -10 -10 -10 -8 -7 -7 -7 ----------- Run | Yrd Mat Min Sub Mat Fac Gar Fac Matter Collected 1252 | 237 215 108 250 212 220 10 . Remotely . | . . . . . . . . Salvage Created 1789 | . 375 50 357 538 341 128 . Parts 97 | . 19 3 19 32 20 4 . Haulers Intercepted 1 | . 1 . . . . . . Recyclers Shooed 1 | . . . . . 1 . . Parts Field Recycled . | . . . . . . . . Retrieved Matter . | . . . . . . . . Parts Self-Destructed 11 | . . . 11 . . . . Prevented . | . . . . . . . . Parts Restored . | . . . . . . . . Kills | -11 -10 -10 -10 -8 -7 -7 -7 ------- Run | Yrd Mat Min Sub Mat Fac Gar Fac Combat Hostiles Destroyed 38 | . 8 1 14 9 4 2 . Melee 11 | . . . . 8 1 2 . Guns 4 | . 4 . . . . . . Cannons 4 | . 3 1 . . . . . AOE 18 | . . . 14 1 3 . . Classes Destroyed 11 | . 3 1 2 5 . . . Worker 1 | . . . . 1 . . . Builder 4 | . . . . 1 3 . . Hauler 1 | . 1 . . . . . . Recycler 4 | . . . . 2 2 . . Operator 1 | . . . . 1 . . . Watcher 3 | . 2 . . 1 . . . Swarmer 7 | . . . 4 3 . . . Grunt 15 | . 8 . . 3 3 1 . Sentry 6 | . . 1 1 2 1 1 . Hunter 1 | . . . . 1 . . . Subdweller 9 | . . . 9 . . . . Best Kill Streak 6 | . 2 1 6 6 5 2 . Combat Bots Only 6 | . 2 1 6 4 4 2 . Max Kills in Single Turn 3 | . 1 1 3 1 2 1 . Gunslinging . | . . . . . . . . Exploded 3 | . . . 3 1 1 . . Melee 1 | . . . . 1 1 1 . Uniques/NPCs Destroyed . | . . . . . . . . Combat | -11 -10 -10 -10 -8 -7 -7 -7 -------- Run | Yrd Mat Min Sub Mat Fac Gar Fac Hostile Shots Fired 318 | . 48 4 47 80 43 96 . Missed 98 | . 11 1 19 18 12 37 . Hits 220 | . 37 3 28 62 31 59 . Melee 9 | . . . . . . 9 . Projectile 211 | . 37 3 28 62 31 50 . AOE 3 | . . . 1 . . 2 . Critical Strikes 4 | . 1 . . 1 . 2 . Damage Taken 3072 | . 536 58 325 836 266 803 248 Core 889 | . 92 . 15 65 45 497 175 Absorbed by Shields . | . . . . . . . . Redirected to Shielding 5 | . 5 . . . . . . Core Remaining (%) 81 | 100 . . 57 88 . . . Volleys Fired 80 | . 47 5 10 13 5 . . Largest 2 | . 2 2 2 2 2 . . Hottest 80 | . 70 50 60 80 60 . . Shots Fired 149 | . 94 8 20 17 10 . . Gun 78 | . 66 4 . 8 . . . Cannon 31 | . 28 3 . . . . . Launcher 38 | . . . 20 8 10 . . Special 2 | . . 1 . 1 . . . Kinetic 90 | . 75 7 . 8 . . . Thermal 21 | . 19 1 . 1 . . . Explosive 38 | . . . 20 8 10 . . Electromagnetic . | . . . . . . . . Robot Hit Streak 18 | . 18 5 9 5 9 . . Robot Miss Streak 6 | . 6 3 1 3 . . . Penetration Max . | . . . . . . . . Secondary Targets . | . . . . . . . . Shots Hit Robots 129 | . 60 5 11 33 13 7 . Core Hits 91 | . 23 2 24 20 18 4 . Critical Kills . | . . . . . . . . Critical Parts Destroyed . | . . . . . . . . Critical Strikes 9 | . 3 . . 3 1 2 . Burn 3 | . 3 . . . . . . Sever 6 | . . . . 3 1 2 . Melee Attacks 55 | . . . . 34 12 9 . Impact . | . . . . . . . . Slashing 55 | . . . . 34 12 9 . Piercing . | . . . . . . . . Sneak Attacks 7 | . . . . 3 4 . . Combat Hostiles . | . . . . . . . . Follow-up Attacks . | . . . . . . . . Damage Inflicted 4615 | . 740 61 1331 1349 880 254 . Guns 555 | . 422 13 . 120 . . . Cannons 345 | . 297 48 . . . . . Explosions 1930 | . . . 1331 206 393 . . Melee 1764 | . . . . 1023 487 254 . Ramming 21 | . 21 . . . . . . Kinetic 750 | . 569 61 . 120 . . . Thermal 150 | . 150 . . . . . . Explosive 1930 | . . . 1331 206 393 . . Electromagnetic . | . . . . . . . . Impact . | . . . . . . . . Slashing 1764 | . . . . 1023 487 254 . Piercing . | . . . . . . . . Highest Corruption . | . . . . . . . . Average Corruption . | . . . . . . . . Corruption Purged . | . . . . . . . . Corruption Blocked . | . . . . . . . . Overload Shots . | . . . . . . . . Overflow Damage 137 | . . . . 107 30 . . Projectiles . | . . . . . . . . Explosions . | . . . . . . . . Melee 137 | . . . . 107 30 . . Knockbacks 4 | . 4 . . . . . . Impact . | . . . . . . . . Kinetic 4 | . 4 . . . . . . Secondary . | . . . . . . . . Self-Inflicted Damage 56 | . . . . 56 . . . Shots 2 | . . . . 2 . . . Rammed 7 | . 6 1 . . . . . Targets Rammed 7 | . 6 1 . . . . . Kicked . | . . . . . . . . Crushed . | . . . . . . . . Highest Temperature 187 | . 187 54 4 75 72 4 . Average Temperature 47 | . 54 30 4 26 37 3 . Received Heat Transfer 1068 | . 300 27 129 261 93 258 . Siege Activations . | . . . . . . . . Martial Activations . | . . . . . . . . Shielding Activations . | . . . . . . . . Robots Disrupted . | . . . . . . . . Combat Hostiles . | . . . . . . . . Robots Corrupted . | . . . . . . . . Combat Hostiles . | . . . . . . . . Parts Fried . | . . . . . . . . Impact Corruptions . | . . . . . . . . Robots Melted 1 | . 1 . . . . . . Combat Hostiles 1 | . 1 . . . . . . Parts Melted 2 | . 2 . . . . . . Heat Transferred 666 | . 666 . . . . . . Parts Sabotaged . | . . . . . . . . Parts Stolen . | . . . . . . . . Parts Stripped . | . . . . . . . . Power Chain Reactions . | . . . . . . . . Alert | -11 -10 -10 -10 -8 -7 -7 -7 ------- Run | Yrd Mat Min Sub Mat Fac Gar Fac Maximum Alert Level . | . . . . . . . . Low Security (%) 100 | 100 100 100 . 100 100 100 100 Level 1 . | . . . . . . . . Level 2 . | . . . . . . . . Level 3 . | . . . . . . . . Level 4 . | . . . . . . . . Level 5 . | . . . . . . . . High Security . | . . . . . . . . Max Security . | . . . . . . . . Peak Influence 192 | . 105 71 . 192 139 83 35 Initial 83 | . . . . . 76 83 35 Average 37 | . 20 18 . 83 81 54 28 Influence Increases 1171 | . 283 127 160 364 153 84 . Destroy 0b10 Robot/C 660 | . 160 100 100 180 80 40 . Destroy 0b10 Robot/NC 70 | . 15 . . 30 25 . . Destroy Leader 128 | . 46 10 . 52 20 . . Allied During Kill 17 | . . 17 . . . . . Successful Hack 30 | . 16 . . . . 14 . Disable Machine 30 | . . . . 30 . . . Destroy Structure 71 | . 1 . . 42 28 . . Lose Combat Pursuer 165 | . 45 . 60 30 . 30 . Influence Decreases 1166 | . 283 127 160 196 202 136 62 Entered New Map 160 | . . . . . 92 36 32 Time Decay 876 | . 283 127 160 176 110 . 20 Lost Part 130 | . . . . 20 . 100 10 Squads Dispatched 4 | . 1 . . 3 . . . Investigation 2 | . 1 . . 1 . . . Extermination . | . . . . . . . . Reinforcement 2 | . . . . 2 . . . Assault . | . . . . . . . . Garrison . | . . . . . . . . Intercept . | . . . . . . . . Searches Triggered . | . . . . . . . . Construction Impeded 1 | . . . . 1 . . . Haulers Reinforced . | . . . . . . . . Active Scanning Responses . | . . . . . . . . Cargo Convoy Interrupts . | . . . . . . . . Stealth | -11 -10 -10 -10 -8 -7 -7 -7 --------- Run | Yrd Mat Min Sub Mat Fac Gar Fac Distress Signals 2 | . . . . 2 . . . Communications Jammed . | . . . . . . . . Distress Signals . | . . . . . . . . Times Spotted 81 | . 15 5 20 16 4 21 . Peak Tracking Total 18 | . 5 3 6 4 3 18 . Tactical Retreats 4 | . 1 . 1 1 . 1 . Traps | -11 -10 -10 -10 -8 -7 -7 -7 ------- Run | Yrd Mat Min Sub Mat Fac Gar Fac Traps Triggered 4 | . 2 . 1 . . . 1 Indirectly . | . . . . . . . . Trap Hack Attempts . | . . . . . . . . Triggered . | . . . . . . . . Disarmed . | . . . . . . . . Reprogrammed . | . . . . . . . . Reused . | . . . . . . . . Traps Extracted . | . . . . . . . . Installed . | . . . . . . . . Triggered . | . . . . . . . . Machines | -11 -10 -10 -10 -8 -7 -7 -7 ---------- Run | Yrd Mat Min Sub Mat Fac Gar Fac Machines Disabled 2 | . . . . 2 . . . Max in Single Turn 1 | . . . . 1 . . . Machines Repaired . | . . . . . . . . Machines Dismantled . | . . . . . . . . Machines Sabotaged . | . . . . . . . . Overloaded Fab Kills . | . . . . . . . . Hacking | -11 -10 -10 -10 -8 -7 -7 -7 --------- Run | Yrd Mat Min Sub Mat Fac Gar Fac Machines Accessed 11 | . 6 1 . 1 2 1 . Terminals 7 | . 5 . . . 1 1 . Fabricators . | . . . . . . . . Repair Stations 1 | . 1 . . . . . . Recycling Units 1 | . . . . 1 . . . Scanalyzers . | . . . . . . . . Garrison Access 1 | . . . . . 1 . . Total Hacks 27 | . 19 1 . 3 2 2 . Successful 18 | . 12 1 . 3 1 1 . Failed 9 | . 7 . . . 1 1 . Catastrophic . | . . . . . . . . Database Lockouts . | . . . . . . . . Manual 2 | . 1 . . . 1 . . Terminals 20 | . 17 . . . 1 2 . Fabricators . | . . . . . . . . Repair Stations 2 | . 2 . . . . . . Recycling Units 3 | . . . . 3 . . . Scanalyzers . | . . . . . . . . Garrison Access 1 | . . . . . 1 . . Terminal Hacks 14 | . 12 1 . . . 1 . Record 2 | . 2 . . . . . . Open Door 1 | . . 1 . . . . . Emergency Access Points 3 | . 2 . . . . 1 . Alert Level 2 | . 2 . . . . . . Locate Traps 3 | . 3 . . . . . . Recall Investigation 1 | . 1 . . . . . . Hauler Manifests 1 | . 1 . . . . . . Zone Layout 1 | . 1 . . . . . . Fabricator Hacks . | . . . . . . . . Repair Station Hacks . | . . . . . . . . Recycling Unit Hacks 3 | . . . . 3 . . . Recycle Component 1 | . . . . 1 . . . Process 1 | . . . . 1 . . . Retrieve Matter 1 | . . . . 1 . . . Scanalyzer . | . . . . . . . . Garrison Access Hacks 1 | . . . . . 1 . . Unlock Access 1 | . . . . . 1 . . Unauthorized Hacks . | . . . . . . . . Terminals . | . . . . . . . . Fabricators . | . . . . . . . . Repair Stations . | . . . . . . . . Recycling Units . | . . . . . . . . Scanalyzers . | . . . . . . . . Garrison Access . | . . . . . . . . Data Cores Recovered . | . . . . . . . . Used . | . . . . . . . . Hacking Detections 9 | . 6 . . 1 1 1 . Full Trace Events 2 | . 1 . . 1 . . . Feedback Events . | . . . . . . . . Feedback Blocked . | . . . . . . . . Robot Schematics Acquired . | . . . . . . . . Robots Built . | . . . . . . . . Authchips . | . . . . . . . . Time . | . . . . . . . . Total Robot Build Rating . | . . . . . . . . Part Schematics Acquired . | . . . . . . . . Parts Built . | . . . . . . . . Authchips . | . . . . . . . . Time . | . . . . . . . . Total Part Build Rating . | . . . . . . . . Part Studies Acquired . | . . . . . . . . Parts Repaired . | . . . . . . . . Time . | . . . . . . . . Parts Recycled 1 | . . . . 1 . . . Recycled Matter 144 | . . . . 144 . . . Retrieved Matter 144 | . . . . 144 . . . Retrieved Components . | . . . . . . . . Parts Scanalyzed . | . . . . . . . . Part Schematics Acquired . | . . . . . . . . Parts Damaged . | . . . . . . . . Bothacking | -11 -10 -10 -10 -8 -7 -7 -7 ------------ Run | Yrd Mat Min Sub Mat Fac Gar Fac Used RIF Installer 1 | . . . . . . 1 . Robots Hacked . | . . . . . . . . Non-combat . | . . . . . . . . Combat . | . . . . . . . . Robot Hacks Applied . | . . . . . . . . Relay Couplers Released . | . . . . . . . . Fabnet Peak Effective % . | . . . . . . . . Robots Rewired . | . . . . . . . . Allies Hacked . | . . . . . . . . Hacks Repelled . | . . . . . . . . Allies | -11 -10 -10 -10 -8 -7 -7 -7 -------- Run | Yrd Mat Min Sub Mat Fac Gar Fac Total Allies 3 | . . 3 . . . . . Largest Group 3 | . . 3 . . . . . Highest-Rated Group 40 | . . 40 . . . . . Highest-Rated Ally 16 | . . 16 . . . . . Total Orders . | . . . . . . . . Ally Attacks 35 | . . 23 12 . . . . Total Damage 289 | . . 235 54 . . . . Kills 5 | . . 4 1 . . . . Allies Corrupted . | . . . . . . . . Allies Melted . | . . . . . . . . Intel | -11 -10 -10 -10 -8 -7 -7 -7 ------- Run | Yrd Mat Min Sub Mat Fac Gar Fac Active Infowar (turns) 640 | . . . . 264 228 148 . Structural 640 | . . . . 264 228 148 . Robot Analysis Total . | . . . . . . . . Derelict Logs Recovered 2 | . . . 2 . . . . Drone Launches 12 | . . 6 6 . . . . Drone Recoveries 12 | . . . 12 . . . . Exploration | -11 -10 -10 -10 -8 -7 -7 -7 ------------- Run | Yrd Mat Min Sub Mat Fac Gar Fac Turns Passed 3965 | 95 1541 443 919 526 228 171 42 Spaces Moved 2260 | 66 837 229 545 260 99 145 79 Core 206 | 20 . . . . . 107 79 Treads 1699 | 46 837 229 545 42 . . . Legs 355 | . . . . 218 99 38 . Wheels . | . . . . . . . . Hover . | . . . . . . . . Flight . | . . . . . . . . Fastest Speed 50 | 50 160 160 160 120 120 50 50 Average Speed 148 | 126 160 160 160 132 173 100 50 Slowest Speed 550 | 160 160 160 160 260 190 550 50 Overloaded Moves . | . . . . . . . . Propulsion Burnouts . | . . . . . . . . Robots Hopped . | . . . . . . . . Potential Cave-ins . | . . . . . . . . Cave-ins Triggered . | . . . . . . . . Exploration Rate (%) 34 | 6 90 64 49 22 6 32 6 Regions Visited 7 Branch Regions 2 Pre-discovered Areas 3 | . . . 3 . . . . Known Exits Taken 1 | . . . . . 1 . . Unknown Exits Taken 5 | 1 1 1 1 1 . . . Scrap Searched 4 | . . 1 3 . . . . Spaces Dug 19 | . . . . 16 3 . . Terrain Destroyed 180 | . . . 97 39 44 . . Melee 4 | . . . . 1 3 . . Projectile . | . . . . . . . . AOE 176 | . . . 97 38 41 . . Terrain Rammed . | . . . . . . . . Walls Destroyed . | . . . . . . . . Machines Disabled . | . . . . . . . . Actions | -11 -10 -10 -10 -8 -7 -7 -7 --------- Run | Yrd Mat Min Sub Mat Fac Gar Fac Total 2624 | 78 950 297 570 364 128 156 81 Wait 130 | . 38 46 3 30 12 . 1 Move 2252 | 65 836 228 544 259 98 143 79 Hop . | . . . . . . . . Pick Up 30 | 7 15 3 3 2 . . . Fast Attach 2 | . . . . 1 . 1 . Attach 16 | 6 2 . 1 5 1 . 1 Detach . | . . . . . . . . Swap 34 | . 4 8 4 18 . . . Drop 18 | . 2 6 5 2 . 3 . Fire 80 | . 47 5 10 13 5 . . Melee 55 | . . . . 34 12 9 . Ram . | . . . . . . . . Kick . | . . . . . . . . Crush 7 | . 6 1 . . . . . Escape Stasis . | . . . . . . . . Rewire . | . . . . . . . . Trap . | . . . . . . . . Miscellaneous . | . . . . . . . . Route ------- -11/Scrapyard -10/Materials (discovered 5 exits: [*Mat x3] / *Min x2) -10/Mines -10/Subcaves -8/Materials -7/Factory -7/Garrison -7/Factory History --------- Turn | Location | Event 9 | -11/Scrapyard | Discovered new exit (range 15) 96 | -11/Scrapyard | Entered Materials 184 | -10/Materials | Discovered new exit (range 8) 330 | -10/Materials | Build established: Mutant 461 | -10/Materials | Discovered new exit (range 11) 717 | -10/Materials | Discovered new exit (range 8) 1540 | -10/Materials | Discovered new exit (range 6) 1622 | -10/Materials | Discovered new exit (range 8) 1637 | -10/Materials | Entered Mines 1644 | -10/Mines | Assisted by bots powering up and referring to "LRC-V3" 1891 | -10/Mines | Found the Drone Emporium 1898 | -10/Mines | Found Prototype Device 1899 | -10/Mines | Identified Splice Drone Bay 1956 | -10/Mines | YI-UF0 nonchalantly dropped a Grenade Launcher on the ground 2067 | -10/Mines | Discovered new exit (range 9) 2080 | -10/Mines | Entered Subcaves 2080 | -10/Subcaves | Accompanied by 6 allies 2081 | -10/Subcaves | Approached by a straggling Scientist 2082 | -10/Subcaves | Learned location of Zion (-7) 2082 | -10/Subcaves | Met a Zionite searching for "candidates" 2124 | -10/Subcaves | Build established: Scavenger-Mutant 2191 | -10/Subcaves | Ambushed by swarm of Subdwellers 2194 | -10/Subcaves | Learned location of Storage (-9) 2196 | -10/Subcaves | Ambushed by Subdweller buried in earth 2207 | -10/Subcaves | Ambushed by Subdweller buried in earth 2233 | -10/Subcaves | Lost 4 allies 2485 | -10/Subcaves | Build established: Mutant 2822 | -10/Subcaves | Discovered new exit (range 13) 2853 | -10/Subcaves | Disturbed a concealed Subdweller 2999 | -10/Subcaves | Entered Materials 2999 | -8/Materials | Evolved 4 slots: Power x1, Propulsion x1, Utility x2 3366 | -8/Materials | Discovered new exit (range 16) 3525 | -8/Materials | Entered Factory 3525 | -7/Factory | Evolved 2 slots: Propulsion x1, Weapon x1 3751 | -7/Factory | Identified exit to Garrison 3753 | -7/Factory | Entered Garrison 3786 | -7/Garrison | Installed Relay Interface Framework 3805 | -7/Garrison | Triggered checkpoint 3859 | -7/Garrison | Lost 8 parts (2p3n1u2w) 3901 | -7/Garrison | Triggered checkpoint 3911 | -7/Garrison | Core integrity fell below 50% 3918 | -7/Garrison | Discovered new exit (range 12) 3924 | -7/Garrison | Entered Factory 3966 | -7/Factory | Destroyed by exploding Nuclear Reactor Last Messages --------------- Garrison Door activated. C-45 Heavy ARC bursts open, deploying its payload. S-27 Virus unfolds itself. Slug penetrates S-27 Virus. S-27 Virus destroyed. Connecting with Garrison Terminal... >>Access(Emergency) Found 39 emergency access points. Map updated. EXIT=FOUND Attempting to access garrison exit controls... RIF authorized. LOCATION=UNKNOWN GOAL=ESCAPE Triggered Heavy Explosive Trap. An explosion rips through the floor. Nuclear Reactor explodes. U-05 Engineer destroyed. Lgt. Armor Plating destroyed. Map ----- +----------------------------------------------------+ | ?????????????????????????????????????????????????? | | ?????????????????????????????????????????????????? | | ?????????????????????????????????????????????????? | | ?????????????????????????????????????????????????? | | ?????????????????????????????????????????????????? | | ?????????????????????????????????????????????????? | | ?????????????????????????????????????????????????? | | ?????????????????????????????????????????????????? | | ?????????????????????????????????????????????????? | | ?????????????????????????????????????????????????? | | ????????????????????????? ??????????????????????? | | ????????????????????????? "?????????????????????? | | ????????????????????????? "???? ????????????????? | | ????????????????????????? ??? ??????????????? | | ????????????????????????? ""? ????????????? | | ????????????????????????? """ ????????????? | | ????????????????????????? """ ???????????? | | ????????????????????????# ???????????? | | ????????????????????????#[! ??????????? | | ????????????????????????#!! ???????????? | | ???????????###??#########! ?????????????? | | ???????????# # #??????????????? | | ???????????# """ """ # #??????????????? | | ???????????# """ """ #??????????????? | | ???????????# """ """ #??????????????? | | ???????????# @ #??????????????? | | ???????????# """ """ #??????????????? | | ???????????# """ """ #??????????????? | | ############ """ """ # #??????????????? | | # # #??????????????? | | # # """ #??????????????? | | # # """ #??????????????? | | #] # """ #??????????????? | | ?"" """ ####+######### #??????????????? | | """ """ #### #######?? """?? #??????????????? | | """ """ + ""???? ??????????????? | | ### ""??????#?????????????? | | """ """ #?# ???????????????????? | | """ """ #?# !!! ""????????????????????? | | """ """ #?# !! "?????????????????????? | | #?# !! "?????????????????????? | | #####+######## ?????????????????????? | | ??# ?????????????????????? | | ??# #######?????????????????????? | | ??# #???????????????????????????? | | ??# ###### #???????????????????????????? | | ??# #????# #???????????????????????????? | | ??# #????? +???????????????????????????? | | #?# #????? #???????????????????????????? | | ?# #????? ??????????????????????????????? | +----------------------------------------------------+ Best States ------------- Heat Dissipation 34 Energy Generation 27 Energy Capacity 315 Matter Stores 300 Matter Capacity 300 Sight Range 16 Terrain Scan Density 10 Armor Coverage 800 Utility Shielding 33 Evasion (%) 55 Recoil Reduction 3 Authchip Count 2 Item Schematics ----------------- None Robot Schematics ------------------ None Fabricated ------------ Nothing Repaired ---------- Nothing Studied --------- None Alien Tech Used ----------------- None Achievements -------------- DATA ERROR: Steam Global Achievement% Do Not Disturb For Emergencies Only GoHome() Heavy Suspicion I Have A Map? Join The Dark Side Organ Harvest Release The Drones! Resistances Are Futile Challenges ------------ None Game ------ Seed ControlMagneticVibroblade Manual? 0 Play Time 01:03:00 Cumulative 14.4 hours Start 2025.12.29 @ 23:37:25 End 2025.12.30 @ 00:44:20 Sessions 1 Manual Loads 0 Difficulty Rogue Special Mode None Game No. 12 Rogue 12 Adventurer 0 Explorer 0 Win Type - Total 0 Types 0/0/0/0/0/0/0/0/0/0 Lore% 14 Gallery% 20 Achievement% 14 Wizard Run 0 Options --------- Layout 1 ASCII 0 Keyboard 0 Movement Numpad Keybinds 0 Fullscreen 1 Font 24/Smallcaps Map View 50x35 Zoom Use 0% Tactical HUD 0 Map Filters NONE Filters NONE Steam 1 RUN: 1db12f13-da4b-4128-944f-542ea4d8a69f